[Event "Titled Tuesday Blitz March 28 Early 2023"]
[White "Polanco Nunez, Yoel Estarling"]
[Black "Turzo, Attila"]
[WhiteFideId "6401783"]
[BlackFideId "704954"]
[WhiteElo "2132"]
[BlackElo "2519"]
[Result "1-0"]
[Round "03"]
[TimeControl "180+2"]
[Date "2023.03.28"]
[WhiteClock "0:00:56"]
[BlackClock "0:00:13"]

1. d4 {[%clk 0:03:00]}  Nf6 {[%clk 0:02:53]} 2. c4 {[%clk 0:02:59]}  c5 {[%clk 0:02:53]} 3. d5 {[%clk 0:02:59]}  b5 {[%clk 0:02:54]} 4. cxb5 {[%clk 0:03:00]}  a6 {[%clk 0:02:53]} 5. bxa6 {[%clk 0:03:01]}  g6 {[%clk 0:02:53]} 6. Nc3 {[%clk 0:03:01]}  Bxa6 {[%clk 0:02:48]} 7. Nf3 {[%clk 0:03:02]}  Bg7 {[%clk 0:02:46]} 8. e4 {[%clk 0:03:03]}  Bxf1 {[%clk 0:02:47]} 9. Kxf1 {[%clk 0:03:04]}  O-O {[%clk 0:02:46]} 10. g3 {[%clk 0:03:04]}  d6 {[%clk 0:02:45]} 11. Kg2 {[%clk 0:03:05]}  Nbd7 {[%clk 0:02:45]} 12. a4 {[%clk 0:03:04]}  Ne8 {[%clk 0:02:40]} 13. h4 {[%clk 0:02:58]}  h6 {[%clk 0:02:25]} 14. Qe2 {[%clk 0:02:50]}  Nc7 {[%clk 0:02:25]} 15. Bf4 {[%clk 0:02:50]}  Qb8 {[%clk 0:02:13]} 16. e5 {[%clk 0:02:45]}  dxe5 {[%clk 0:02:11]} 17. Nxe5 {[%clk 0:02:45]}  Nxe5 {[%clk 0:02:09]} 18. Bxe5 {[%clk 0:02:44]}  Qb7 {[%clk 0:02:07]} 19. Bxg7 {[%clk 0:02:24]}  Kxg7 {[%clk 0:02:05]} 20. Qxe7 {[%clk 0:02:24]}  Qxb2 {[%clk 0:01:46]} 21. Qe5+ {[%clk 0:02:23]}  Kg8 {[%clk 0:01:44]} 22. Rab1 {[%clk 0:02:24]}  Rae8 {[%clk 0:01:37]} 23. Qxe8 {[%clk 0:02:16]}  Qxc3 {[%clk 0:01:36]} 24. Qc6 {[%clk 0:02:11]}  Qe5 {[%clk 0:01:33]} 25. d6 {[%clk 0:01:58]}  Ne6 {[%clk 0:01:31]} 26. Rhe1 {[%clk 0:01:55]}  Qf5 {[%clk 0:01:25]} 27. Qf3 {[%clk 0:01:49]}  Qc2 {[%clk 0:01:19]} 28. Rbc1 {[%clk 0:01:46]}  Qxa4 {[%clk 0:01:17]} 29. Qd5 {[%clk 0:01:42]}  Qd7 {[%clk 0:01:15]} 30. h5 {[%clk 0:01:38]}  g5 {[%clk 0:01:03]} 31. Rcd1 {[%clk 0:01:31]}  Rd8 {[%clk 0:01:02]} 32. Qf5 {[%clk 0:01:30]}  Kg7 {[%clk 0:01:00]} 33. Rd5 {[%clk 0:01:28]}  Qc6 {[%clk 0:00:54]} 34. Rxe6 {[%clk 0:01:22]}  fxe6 {[%clk 0:00:54]} 35. Qxe6 {[%clk 0:01:22]}  Rd7 {[%clk 0:00:44]} 36. Qg6+ {[%clk 0:01:21]}  Kf8 {[%clk 0:00:43]} 37. Qxh6+ {[%clk 0:01:21]}  Ke8 {[%clk 0:00:42]} 38. Qe6+ {[%clk 0:01:15]}  Kf8 {[%clk 0:00:41]} 39. Kh3 {[%clk 0:01:13]}  Rf7 {[%clk 0:00:38]} 40. Rf5 {[%clk 0:01:07]}  Qh1+ {[%clk 0:00:21]} 41. Kg4 {[%clk 0:01:06]}  Qd1+ {[%clk 0:00:21]} 42. f3 {[%clk 0:01:02]}  Qd4+ {[%clk 0:00:20]} 43. Kh3 {[%clk 0:01:02]}  Rxf5 {[%clk 0:00:17]} 44. Qxf5+ {[%clk 0:01:02]}  Ke8 {[%clk 0:00:17]} 45. Qe4+ {[%clk 0:00:53]}  Qxe4 {[%clk 0:00:11]} 46. fxe4 {[%clk 0:00:53]}  c4 {[%clk 0:00:12]} 47. h6 {[%clk 0:00:54]}  c3 {[%clk 0:00:12]} 48. h7 {[%clk 0:00:55]}  c2 {[%clk 0:00:13]} 49. h8=Q+ {[%clk 0:00:55]}  Kd7 {[%clk 0:00:13]} 50. Qb2 {[%clk 0:00:56]} 1-0


[Site "https://www.chess.com"]

[Event "Titled Tuesday Blitz March 28 Early 2023"]
[White "Davidson, Kevin"]
[Black "Hajiyev, Kanan"]
[WhiteFideId "2056810"]
[BlackFideId "13404148"]
[WhiteElo "2151"]
[BlackElo "2103"]
[Result "1/2-1/2"]
[Round "03"]
[TimeControl "180+2"]
[Date "2023.03.28"]
[WhiteClock "0:00:05"]
[BlackClock "0:00:07"]

1. e4 {[%clk 0:03:00]}  c6 {[%clk 0:02:59]} 2. d4 {[%clk 0:03:00]}  d5 {[%clk 0:03:00]} 3. e5 {[%clk 0:03:01]}  a6 {[%clk 0:03:01]} 4. Be3 {[%clk 0:02:57]}  Bf5 {[%clk 0:03:01]} 5. Nd2 {[%clk 0:02:56]}  e6 {[%clk 0:03:01]} 6. Ngf3 {[%clk 0:02:54]}  c5 {[%clk 0:03:01]} 7. dxc5 {[%clk 0:02:54]}  Nd7 {[%clk 0:03:01]} 8. Nb3 {[%clk 0:02:52]}  Qc7 {[%clk 0:02:59]} 9. Nfd4 {[%clk 0:02:31]}  Bg6 {[%clk 0:02:55]} 10. f4 {[%clk 0:02:30]}  Nxc5 {[%clk 0:02:54]} 11. Nxc5 {[%clk 0:02:29]}  Bxc5 {[%clk 0:02:55]} 12. Be2 {[%clk 0:02:23]}  Ne7 {[%clk 0:02:51]} 13. O-O {[%clk 0:02:21]}  Nf5 {[%clk 0:02:48]} 14. Nxf5 {[%clk 0:02:21]}  Bxf5 {[%clk 0:02:49]} 15. Bxc5 {[%clk 0:02:08]}  Qxc5+ {[%clk 0:02:50]} 16. Kh1 {[%clk 0:02:08]}  Qxc2 {[%clk 0:02:44]} 17. Qxc2 {[%clk 0:02:01]}  Bxc2 {[%clk 0:02:45]} 18. Rac1 {[%clk 0:02:02]}  Ba4 {[%clk 0:02:45]} 19. Rc7 {[%clk 0:01:59]}  Bc6 {[%clk 0:02:45]} 20. f5 {[%clk 0:01:50]}  O-O {[%clk 0:02:22]} 21. Bg4 {[%clk 0:01:43]}  exf5 {[%clk 0:02:04]} 22. Rxf5 {[%clk 0:01:42]}  Rad8 {[%clk 0:01:38]} 23. Be2 {[%clk 0:01:21]}  g6 {[%clk 0:01:31]} 24. Rf6 {[%clk 0:01:12]}  d4 {[%clk 0:01:26]} 25. Bd3 {[%clk 0:01:10]}  Rde8 {[%clk 0:01:09]} 26. Rd6 {[%clk 0:00:34]}  Rxe5 {[%clk 0:01:05]} 27. h3 {[%clk 0:00:33]}  Rd5 {[%clk 0:00:47]} 28. Rf6 {[%clk 0:00:32]}  Bb5 {[%clk 0:00:41]} 29. Bxb5 {[%clk 0:00:14]}  axb5 {[%clk 0:00:41]} 30. Rf2 {[%clk 0:00:08]}  d3 {[%clk 0:00:42]} 31. Rd2 {[%clk 0:00:08]}  Re8 {[%clk 0:00:42]} 32. Rc3 {[%clk 0:00:08]}  Re1+ {[%clk 0:00:19]} 33. Kh2 {[%clk 0:00:08]}  Re3 {[%clk 0:00:18]} 34. Kg1 {[%clk 0:00:07]}  Re2 {[%clk 0:00:12]} 35. Rdxd3 {[%clk 0:00:03]}  Rxd3 {[%clk 0:00:12]} 36. Rxd3 {[%clk 0:00:04]}  Rxb2 {[%clk 0:00:12]} 37. a3 {[%clk 0:00:03]}  b4 {[%clk 0:00:12]} 38. axb4 {[%clk 0:00:03]}  Rxb4 {[%clk 0:00:13]} 39. Rd7 {[%clk 0:00:03]}  Kf8 {[%clk 0:00:12]} 40. Kh2 {[%clk 0:00:02]}  Ke8 {[%clk 0:00:12]} 41. Rc7 {[%clk 0:00:02]}  h5 {[%clk 0:00:10]} 42. Kg3 {[%clk 0:00:02]}  g5 {[%clk 0:00:10]} 43. Kf3 {[%clk 0:00:02]}  Rb3+ {[%clk 0:00:08]} 44. Kf2 {[%clk 0:00:02]}  h4 {[%clk 0:00:08]} 45. Ke2 {[%clk 0:00:01]}  f5 {[%clk 0:00:08]} 46. Rc5 {[%clk 0:00:01]}  g4 {[%clk 0:00:04]} 47. Rxf5 {[%clk 0:00:01]}  gxh3 {[%clk 0:00:04]} 48. gxh3 {[%clk 0:00:01]}  Rxh3 {[%clk 0:00:04]} 49. Rb5 {[%clk 0:00:01]}  Rh2+ {[%clk 0:00:03]} 50. Kf3 {[%clk 0:00:02]}  h3 {[%clk 0:00:04]} 51. Kg3 {[%clk 0:00:02]}  Rh1 {[%clk 0:00:04]} 52. Rxb7 {[%clk 0:00:01]}  h2 {[%clk 0:00:04]} 53. Kg2 {[%clk 0:00:02]}  Rc1 {[%clk 0:00:02]} 54. Kxh2 {[%clk 0:00:02]}  Rc2+ {[%clk 0:00:03]} 55. Kg3 {[%clk 0:00:02]}  Rc3+ {[%clk 0:00:03]} 56. Kf4 {[%clk 0:00:03]}  Rc4+ {[%clk 0:00:04]} 57. Ke5 {[%clk 0:00:03]}  Rc6 {[%clk 0:00:04]} 58. Kd5 {[%clk 0:00:03]}  Rc3 {[%clk 0:00:04]} 59. Ke5 {[%clk 0:00:03]}  Kd8 {[%clk 0:00:04]} 60. Rh7 {[%clk 0:00:03]}  Kc8 {[%clk 0:00:05]} 61. Kd6 {[%clk 0:00:03]}  Rd3+ {[%clk 0:00:05]} 62. Kc6 {[%clk 0:00:04]}  Rc3+ {[%clk 0:00:06]} 63. Kd6 {[%clk 0:00:04]}  Rd3+ {[%clk 0:00:06]} 64. Kc6 {[%clk 0:00:04]}  Rc3+ {[%clk 0:00:07]} 65. Kd6 {[%clk 0:00:05]} 1/2-1/2


[Site "https://www.chess.com"]

[Event "Titled Tuesday Blitz March 28 Early 2023"]
[White "Arencibia Monduy, Antonio"]
[Black "Prudnykova, Olga"]
[WhiteFideId "3507939"]
[BlackFideId "14121093"]
[WhiteElo "2510"]
[BlackElo "2113"]
[Result "1-0"]
[Round "03"]
[TimeControl "180+2"]
[Date "2023.03.28"]
[WhiteClock "0:00:08"]
[BlackClock "0:00:37"]

1. e4 {[%clk 0:03:00]}  c5 {[%clk 0:02:59]} 2. Nf3 {[%clk 0:02:59]}  Nf6 {[%clk 0:02:58]} 3. e5 {[%clk 0:02:57]}  Nd5 {[%clk 0:02:58]} 4. c3 {[%clk 0:02:58]}  e6 {[%clk 0:02:55]} 5. d4 {[%clk 0:02:58]}  cxd4 {[%clk 0:02:55]} 6. cxd4 {[%clk 0:02:58]}  Bb4+ {[%clk 0:02:53]} 7. Bd2 {[%clk 0:02:58]}  Bxd2+ {[%clk 0:02:53]} 8. Qxd2 {[%clk 0:02:57]}  b6 {[%clk 0:02:53]} 9. Nc3 {[%clk 0:02:51]}  Ne7 {[%clk 0:02:44]} 10. Ne4 {[%clk 0:02:42]}  O-O {[%clk 0:02:43]} 11. Nd6 {[%clk 0:02:37]}  Ba6 {[%clk 0:02:43]} 12. Bxa6 {[%clk 0:02:36]}  Nxa6 {[%clk 0:02:43]} 13. Qd3 {[%clk 0:02:29]}  Nc7 {[%clk 0:02:39]} 14. Ng5 {[%clk 0:02:18]}  Ng6 {[%clk 0:02:37]} 15. h4 {[%clk 0:02:18]}  h6 {[%clk 0:02:37]} 16. Ngxf7 {[%clk 0:02:14]}  Rxf7 {[%clk 0:02:14]} 17. Qxg6 {[%clk 0:02:14]}  Rf8 {[%clk 0:02:09]} 18. Rh3 {[%clk 0:01:56]}  Nd5 {[%clk 0:02:08]} 19. Rg3 {[%clk 0:01:53]}  Qe7 {[%clk 0:02:07]} 20. Qe4 {[%clk 0:01:09]}  Rf4 {[%clk 0:02:00]} 21. Qc2 {[%clk 0:00:41]}  Rxd4 {[%clk 0:01:53]} 22. Rd1 {[%clk 0:00:34]}  Rxd1+ {[%clk 0:01:51]} 23. Qxd1 {[%clk 0:00:31]}  Qxh4 {[%clk 0:01:46]} 24. Qg4 {[%clk 0:00:31]}  Qe7 {[%clk 0:01:22]} 25. Qg6 {[%clk 0:00:25]}  Rf8 {[%clk 0:01:21]} 26. Qxh6 {[%clk 0:00:24]}  Nf4 {[%clk 0:01:14]} 27. Qg5 {[%clk 0:00:13]}  Nd3+ {[%clk 0:01:07]} 28. Ke2 {[%clk 0:00:12]}  Qxg5 {[%clk 0:01:05]} 29. Rxg5 {[%clk 0:00:12]}  Nxb2 {[%clk 0:01:00]} 30. Rg4 {[%clk 0:00:09]}  Rb8 {[%clk 0:00:50]} 31. Rb4 {[%clk 0:00:08]}  b5 {[%clk 0:00:37]} 32. Rxb2 {[%clk 0:00:08]}  a6 {[%clk 0:00:37]} 33. Kd3 {[%clk 0:00:08]}  Rb6 {[%clk 0:00:37]} 34. f3 {[%clk 0:00:08]}  Rc6 {[%clk 0:00:37]} 35. Rc2 {[%clk 0:00:08]} 1-0


[Site "https://www.chess.com"]

[Event "Titled Tuesday Blitz March 28 Early 2023"]
[White "Mrudul Dehankar"]
[Black "Ronka, Erik"]
[WhiteFideId "25096990"]
[BlackFideId "505080"]
[WhiteElo "2139"]
[BlackElo "2264"]
[Result "0-1"]
[Round "03"]
[TimeControl "180+2"]
[Date "2023.03.28"]
[WhiteClock "0:00:02"]
[BlackClock "0:01:36"]

1. e4 {[%clk 0:02:49]}  c6 {[%clk 0:03:00]} 2. d4 {[%clk 0:02:48]}  d5 {[%clk 0:03:01]} 3. Nd2 {[%clk 0:02:47]}  dxe4 {[%clk 0:03:00]} 4. Nxe4 {[%clk 0:02:48]}  Bf5 {[%clk 0:03:00]} 5. Ng3 {[%clk 0:02:47]}  Bg6 {[%clk 0:03:01]} 6. h4 {[%clk 0:02:47]}  h6 {[%clk 0:03:01]} 7. Nh3 {[%clk 0:02:47]}  e6 {[%clk 0:03:01]} 8. Nf4 {[%clk 0:02:47]}  Bh7 {[%clk 0:03:02]} 9. Bc4 {[%clk 0:02:47]}  Nd7 {[%clk 0:02:56]} 10. c3 {[%clk 0:02:44]}  Ngf6 {[%clk 0:02:56]} 11. O-O {[%clk 0:02:43]}  Bd6 {[%clk 0:02:52]} 12. Re1 {[%clk 0:02:42]}  Bxf4 {[%clk 0:02:35]} 13. Bxf4 {[%clk 0:02:41]}  O-O {[%clk 0:02:36]} 14. Qf3 {[%clk 0:01:30]}  a5 {[%clk 0:02:28]} 15. Rad1 {[%clk 0:01:16]}  a4 {[%clk 0:02:27]} 16. Bd3 {[%clk 0:01:12]}  Bxd3 {[%clk 0:02:26]} 17. Rxd3 {[%clk 0:01:11]}  Qa5 {[%clk 0:02:22]} 18. Be5 {[%clk 0:01:07]}  Qd5 {[%clk 0:02:07]} 19. a3 {[%clk 0:00:17]}  Rad8 {[%clk 0:02:03]} 20. Qxd5 {[%clk 0:00:10]}  Nxd5 {[%clk 0:02:03]} 21. Bd6 {[%clk 0:00:09]}  Rfe8 {[%clk 0:02:02]} 22. Ne4 {[%clk 0:00:09]}  N7f6 {[%clk 0:02:00]} 23. Bg3 {[%clk 0:00:07]}  Nxe4 {[%clk 0:01:58]} 24. Rxe4 {[%clk 0:00:07]}  b5 {[%clk 0:01:59]} 25. Be5 {[%clk 0:00:04]}  f6 {[%clk 0:01:55]} 26. Bh2 {[%clk 0:00:04]}  Kf7 {[%clk 0:01:56]} 27. Rd1 {[%clk 0:00:04]}  Nb6 {[%clk 0:01:55]} 28. Rde1 {[%clk 0:00:04]}  Nc4 {[%clk 0:01:55]} 29. R4e2 {[%clk 0:00:05]}  Rd7 {[%clk 0:01:54]} 30. h5 {[%clk 0:00:05]}  Rde7 {[%clk 0:01:47]} 31. g4 {[%clk 0:00:04]}  Rc8 {[%clk 0:01:47]} 32. Kg2 {[%clk 0:00:04]}  c5 {[%clk 0:01:48]} 33. d5 {[%clk 0:00:04]}  Rce8 {[%clk 0:01:37]} 34. d6 {[%clk 0:00:02]}  Rd7 {[%clk 0:01:36]} 35. Rd2 {[%clk 0:00:02]}  Nxd2 {[%clk 0:01:36]} 0-1


[Site "https://www.chess.com"]

[Event "Titled Tuesday Blitz March 28 Early 2023"]
[White "Gronnestad, Anita"]
[Black "Ljukin, Sergei"]
[WhiteFideId "1502972"]
[BlackFideId "14102200"]
[WhiteElo "1939"]
[BlackElo "2312"]
[Result "1-0"]
[Round "03"]
[TimeControl "180+2"]
[Date "2023.03.28"]
[WhiteClock "0:00:16"]
[BlackClock "0:00:02"]

1. d4 {[%clk 0:02:59]}  d5 {[%clk 0:03:00]} 2. c4 {[%clk 0:03:00]}  c6 {[%clk 0:03:00]} 3. Nf3 {[%clk 0:03:00]}  Nf6 {[%clk 0:03:00]} 4. Nc3 {[%clk 0:03:00]}  dxc4 {[%clk 0:03:00]} 5. a4 {[%clk 0:03:00]}  Bf5 {[%clk 0:03:00]} 6. e3 {[%clk 0:03:00]}  e6 {[%clk 0:02:59]} 7. Bxc4 {[%clk 0:03:00]}  Bb4 {[%clk 0:02:59]} 8. O-O {[%clk 0:03:00]}  Nbd7 {[%clk 0:03:00]} 9. Nd2 {[%clk 0:02:56]}  e5 {[%clk 0:02:53]} 10. Bxf7+ {[%clk 0:02:48]}  Kxf7 {[%clk 0:02:41]} 11. Qb3+ {[%clk 0:02:48]}  Nd5 {[%clk 0:02:29]} 12. Nxd5 {[%clk 0:02:43]}  cxd5 {[%clk 0:02:30]} 13. Qxb4 {[%clk 0:02:40]}  e4 {[%clk 0:02:27]} 14. Qxb7 {[%clk 0:02:35]}  Be6 {[%clk 0:02:25]} 15. f3 {[%clk 0:02:30]}  Rb8 {[%clk 0:01:59]} 16. fxe4+ {[%clk 0:02:28]}  Kg6 {[%clk 0:01:59]} 17. Qxa7 {[%clk 0:02:13]}  dxe4 {[%clk 0:01:31]} 18. Nxe4 {[%clk 0:02:03]}  Rf8 {[%clk 0:01:23]} 19. Bd2 {[%clk 0:02:03]}  Rxb2 {[%clk 0:01:14]} 20. Rxf8 {[%clk 0:01:55]}  Nxf8 {[%clk 0:01:09]} 21. Rf1 {[%clk 0:01:46]}  h6 {[%clk 0:00:46]} 22. Ba5 {[%clk 0:01:41]}  Qd5 {[%clk 0:00:42]} 23. Bc3 {[%clk 0:01:19]}  Rc2 {[%clk 0:00:28]} 24. Qc7 {[%clk 0:00:34]}  Qxe4 {[%clk 0:00:21]} 25. Qg3+ {[%clk 0:00:34]}  Kh7 {[%clk 0:00:21]} 26. d5 {[%clk 0:00:29]}  Rxc3 {[%clk 0:00:20]} 27. dxe6 {[%clk 0:00:28]}  Nxe6 {[%clk 0:00:20]} 28. Re1 {[%clk 0:00:20]}  Qxa4 {[%clk 0:00:12]} 29. Qf3 {[%clk 0:00:19]}  Qc6 {[%clk 0:00:08]} 30. Qf5+ {[%clk 0:00:19]}  Kg8 {[%clk 0:00:07]} 31. Rd1 {[%clk 0:00:19]}  Rc1 {[%clk 0:00:06]} 32. Rxc1 {[%clk 0:00:16]}  Qxc1+ {[%clk 0:00:06]} 33. Kf2 {[%clk 0:00:17]}  Qd2+ {[%clk 0:00:06]} 34. Kf3 {[%clk 0:00:17]}  Qd1+ {[%clk 0:00:07]} 35. Ke4 {[%clk 0:00:17]}  Qc2+ {[%clk 0:00:06]} 36. Ke5 {[%clk 0:00:15]}  Qxf5+ {[%clk 0:00:06]} 37. Kxf5 {[%clk 0:00:16]}  Kf7 {[%clk 0:00:06]} 38. e4 {[%clk 0:00:16]}  Nd4+ {[%clk 0:00:05]} 39. Ke5 {[%clk 0:00:16]}  Ne6 {[%clk 0:00:02]} 40. h4 {[%clk 0:00:15]}  Ke7 {[%clk 0:00:02]} 41. g4 {[%clk 0:00:16]} 1-0


[Site "https://www.chess.com"]

[Event "Titled Tuesday Blitz March 28 Early 2023"]
[White "Coelho, Ramyres Santana"]
[Black "Petukhov, Dmitry"]
[WhiteFideId "2120690"]
[BlackFideId "4142748"]
[WhiteElo "1888"]
[BlackElo "2311"]
[Result "0-1"]
[Round "03"]
[TimeControl "180+2"]
[Date "2023.03.28"]
[WhiteClock "0:00:12"]
[BlackClock "0:01:32"]

1. e4 {[%clk 0:02:59]}  c5 {[%clk 0:02:59]} 2. Nf3 {[%clk 0:02:59]}  d5 {[%clk 0:02:58]} 3. exd5 {[%clk 0:02:58]}  Qxd5 {[%clk 0:02:59]} 4. Nc3 {[%clk 0:02:58]}  Qd8 {[%clk 0:03:00]} 5. Bc4 {[%clk 0:02:59]}  Nf6 {[%clk 0:03:00]} 6. Ne5 {[%clk 0:02:59]}  e6 {[%clk 0:02:59]} 7. O-O {[%clk 0:02:59]}  Be7 {[%clk 0:02:59]} 8. f4 {[%clk 0:02:59]}  O-O {[%clk 0:02:59]} 9. g4 {[%clk 0:02:53]}  Nbd7 {[%clk 0:02:58]} 10. g5 {[%clk 0:02:50]}  Nxe5 {[%clk 0:02:57]} 11. gxf6 {[%clk 0:02:47]}  Nxc4 {[%clk 0:02:56]} 12. fxe7 {[%clk 0:02:45]}  Qxe7 {[%clk 0:02:57]} 13. d3 {[%clk 0:02:44]}  Nd6 {[%clk 0:02:57]} 14. Ne4 {[%clk 0:02:44]}  Nxe4 {[%clk 0:02:52]} 15. dxe4 {[%clk 0:02:45]}  b6 {[%clk 0:02:52]} 16. Qh5 {[%clk 0:02:43]}  Bb7 {[%clk 0:02:51]} 17. f5 {[%clk 0:02:35]}  Bxe4 {[%clk 0:02:45]} 18. f6 {[%clk 0:02:35]}  Qd6 {[%clk 0:02:45]} 19. Be3 {[%clk 0:02:26]}  gxf6 {[%clk 0:02:36]} 20. Rxf6 {[%clk 0:02:19]}  Bg6 {[%clk 0:02:36]} 21. Qh6 {[%clk 0:02:10]}  Rfd8 {[%clk 0:02:32]} 22. Kf2 {[%clk 0:02:05]}  Qe5 {[%clk 0:02:22]} 23. Qh4 {[%clk 0:01:52]}  Rd5 {[%clk 0:02:07]} 24. Rg1 {[%clk 0:01:52]}  Rad8 {[%clk 0:02:08]} 25. Bh6 {[%clk 0:00:47]}  Rd2+ {[%clk 0:02:06]} 26. Bxd2 {[%clk 0:00:46]}  Rxd2+ {[%clk 0:02:07]} 27. Kf3 {[%clk 0:00:41]}  Rxh2 {[%clk 0:01:52]} 28. Rfxg6+ {[%clk 0:00:34]}  hxg6 {[%clk 0:01:53]} 29. Qf4 {[%clk 0:00:26]}  Rf2+ {[%clk 0:01:49]} 30. Kxf2 {[%clk 0:00:24]}  Qxf4+ {[%clk 0:01:48]} 31. Ke2 {[%clk 0:00:24]}  Qc4+ {[%clk 0:01:47]} 32. Kd2 {[%clk 0:00:24]}  Qxa2 {[%clk 0:01:48]} 33. b3 {[%clk 0:00:23]}  Qb2 {[%clk 0:01:45]} 34. Rg4 {[%clk 0:00:22]}  Qe5 {[%clk 0:01:44]} 35. Ra4 {[%clk 0:00:22]}  a5 {[%clk 0:01:43]} 36. Rc4 {[%clk 0:00:20]}  g5 {[%clk 0:01:43]} 37. Rg4 {[%clk 0:00:20]}  Kg7 {[%clk 0:01:42]} 38. Rc4 {[%clk 0:00:15]}  f5 {[%clk 0:01:41]} 39. Rc3 {[%clk 0:00:15]}  g4 {[%clk 0:01:38]} 40. Re3 {[%clk 0:00:15]}  Qf4 {[%clk 0:01:39]} 41. Ke2 {[%clk 0:00:15]}  g3 {[%clk 0:01:38]} 42. c4 {[%clk 0:00:15]}  Qf2+ {[%clk 0:01:37]} 43. Kd3 {[%clk 0:00:15]}  g2 {[%clk 0:01:37]} 44. b4 {[%clk 0:00:14]}  g1=Q {[%clk 0:01:36]} 45. Re2 {[%clk 0:00:12]}  Qd1+ {[%clk 0:01:34]} 46. Kc3 {[%clk 0:00:12]}  Qfd4# {[%clk 0:01:32]} 0-1


[Site "https://www.chess.com"]

[Event "Titled Tuesday Blitz March 28 Early 2023"]
[White "TheKnightOfBosnia"]
[Black "sebastianmarinp"]
[WhiteElo "2496"]
[BlackElo "2298"]
[Result "1-0"]
[Round "03"]
[TimeControl "180+2"]
[Date "2023.03.28"]
[WhiteClock "0:00:14"]
[BlackClock "0:00:01"]

1. e4 {[%clk 0:03:00]}  e5 {[%clk 0:02:58]} 2. Nf3 {[%clk 0:03:01]}  Nc6 {[%clk 0:02:58]} 3. Bb5 {[%clk 0:03:00]}  a6 {[%clk 0:02:58]} 4. Ba4 {[%clk 0:03:00]}  Nf6 {[%clk 0:02:58]} 5. d3 {[%clk 0:03:00]}  b5 {[%clk 0:02:58]} 6. Bb3 {[%clk 0:03:01]}  Bb7 {[%clk 0:02:58]} 7. Nc3 {[%clk 0:02:57]}  Be7 {[%clk 0:02:53]} 8. O-O {[%clk 0:02:56]}  O-O {[%clk 0:02:53]} 9. a4 {[%clk 0:02:56]}  Na5 {[%clk 0:02:51]} 10. Nxe5 {[%clk 0:02:47]}  b4 {[%clk 0:02:46]} 11. Nxf7 {[%clk 0:02:41]}  Rxf7 {[%clk 0:02:38]} 12. Bxf7+ {[%clk 0:02:42]}  Kxf7 {[%clk 0:02:38]} 13. Ne2 {[%clk 0:02:43]}  Kg8 {[%clk 0:02:25]} 14. Bd2 {[%clk 0:02:41]}  d5 {[%clk 0:02:19]} 15. e5 {[%clk 0:02:40]}  Nd7 {[%clk 0:02:18]} 16. d4 {[%clk 0:02:34]}  c5 {[%clk 0:02:17]} 17. c3 {[%clk 0:02:31]}  Nc4 {[%clk 0:02:13]} 18. b3 {[%clk 0:02:11]}  Nxd2 {[%clk 0:02:08]} 19. Qxd2 {[%clk 0:02:12]}  bxc3 {[%clk 0:02:09]} 20. Nxc3 {[%clk 0:02:12]}  Rc8 {[%clk 0:01:52]} 21. Rfd1 {[%clk 0:02:07]}  cxd4 {[%clk 0:01:33]} 22. Qxd4 {[%clk 0:02:07]}  Nc5 {[%clk 0:01:33]} 23. Rab1 {[%clk 0:01:52]}  Ne6 {[%clk 0:01:22]} 24. Qd2 {[%clk 0:01:41]}  d4 {[%clk 0:01:13]} 25. Ne2 {[%clk 0:01:35]}  Qd5 {[%clk 0:01:10]} 26. f3 {[%clk 0:01:29]}  Bg5 {[%clk 0:01:08]} 27. Qd3 {[%clk 0:01:22]}  Be3+ {[%clk 0:01:08]} 28. Kf1 {[%clk 0:01:15]}  Ng5 {[%clk 0:01:00]} 29. Nxd4 {[%clk 0:01:09]}  Qxe5 {[%clk 0:00:40]} 30. Nf5 {[%clk 0:01:05]}  Bc5 {[%clk 0:00:20]} 31. Qd7 {[%clk 0:00:53]}  Nxf3 {[%clk 0:00:09]} 32. gxf3 {[%clk 0:00:47]}  Rf8 {[%clk 0:00:08]} 33. Qxg7+ {[%clk 0:00:42]}  Qxg7 {[%clk 0:00:08]} 34. Nxg7 {[%clk 0:00:43]}  Kxg7 {[%clk 0:00:09]} 35. Rd7+ {[%clk 0:00:43]}  Rf7 {[%clk 0:00:09]} 36. Rxf7+ {[%clk 0:00:43]}  Kxf7 {[%clk 0:00:10]} 37. Rc1 {[%clk 0:00:43]}  Bd6 {[%clk 0:00:09]} 38. Kg2 {[%clk 0:00:41]}  Ke6 {[%clk 0:00:09]} 39. Re1+ {[%clk 0:00:35]}  Be5 {[%clk 0:00:09]} 40. h4 {[%clk 0:00:31]}  a5 {[%clk 0:00:08]} 41. Re3 {[%clk 0:00:27]}  Bd5 {[%clk 0:00:07]} 42. Kh3 {[%clk 0:00:27]}  Kf5 {[%clk 0:00:07]} 43. Rd3 {[%clk 0:00:26]}  Be6 {[%clk 0:00:06]} 44. Kg2 {[%clk 0:00:26]}  Kf4 {[%clk 0:00:07]} 45. Rd8 {[%clk 0:00:24]}  Bxb3 {[%clk 0:00:06]} 46. Rf8+ {[%clk 0:00:22]}  Ke3 {[%clk 0:00:06]} 47. Rf5 {[%clk 0:00:20]}  Kd4 {[%clk 0:00:04]} 48. f4 {[%clk 0:00:21]}  Bd6 {[%clk 0:00:04]} 49. Rxa5 {[%clk 0:00:21]}  Bd5+ {[%clk 0:00:04]} 50. Kg3 {[%clk 0:00:20]}  Ke4 {[%clk 0:00:04]} 51. Ra7 {[%clk 0:00:17]}  Bxf4+ {[%clk 0:00:04]} 52. Kg4 {[%clk 0:00:16]}  h6 {[%clk 0:00:04]} 53. Re7+ {[%clk 0:00:15]}  Be5 {[%clk 0:00:04]} 54. a5 {[%clk 0:00:16]}  Bc4 {[%clk 0:00:03]} 55. Kh5 {[%clk 0:00:15]}  Kf5 {[%clk 0:00:02]} 56. Kxh6 {[%clk 0:00:14]}  Bf6 {[%clk 0:00:02]} 57. Rc7 {[%clk 0:00:15]}  Be2 {[%clk 0:00:01]} 58. Rc5+ {[%clk 0:00:14]}  Be5 {[%clk 0:00:01]} 59. h5 {[%clk 0:00:13]}  Ke4 {[%clk 0:00:01]} 60. Rc2 {[%clk 0:00:13]}  Bd3 {[%clk 0:00:01]} 61. Rc6 {[%clk 0:00:12]}  Kf5 {[%clk 0:00:02]} 62. a6 {[%clk 0:00:12]}  Bf4+ {[%clk 0:00:02]} 63. Kg7 {[%clk 0:00:13]}  Kg5 {[%clk 0:00:02]} 64. Rc5+ {[%clk 0:00:12]}  Kg4 {[%clk 0:00:02]} 65. a7 {[%clk 0:00:12]}  Be3 {[%clk 0:00:02]} 66. Ra5 {[%clk 0:00:12]}  Bxa7 {[%clk 0:00:02]} 67. Rxa7 {[%clk 0:00:13]}  Kxh5 {[%clk 0:00:02]} 68. Ra3 {[%clk 0:00:13]}  Be4 {[%clk 0:00:02]} 69. Kf6 {[%clk 0:00:13]}  Kg4 {[%clk 0:00:02]} 70. Ke5 {[%clk 0:00:13]}  Bf3 {[%clk 0:00:02]} 71. Kd4 {[%clk 0:00:13]}  Kf4 {[%clk 0:00:02]} 72. Ra7 {[%clk 0:00:12]}  Be4 {[%clk 0:00:02]} 73. Rf7+ {[%clk 0:00:12]}  Bf5 {[%clk 0:00:03]} 74. Rf8 {[%clk 0:00:12]}  Kg5 {[%clk 0:00:04]} 75. Ke5 {[%clk 0:00:13]}  Bd7 {[%clk 0:00:02]} 76. Rg8+ {[%clk 0:00:12]}  Kh6 {[%clk 0:00:02]} 77. Kf6 {[%clk 0:00:13]}  Kh7 {[%clk 0:00:01]} 78. Rg7+ {[%clk 0:00:13]}  Kh8 {[%clk 0:00:01]} 79. Rxd7 {[%clk 0:00:14]} 1-0


[Site "https://www.chess.com"]